[Event "Championnat d'Europe de Blitz"]
[Date "2024.12.09"]
[White "Bulmaga, Irina"]
[Black "Vanden Bussche, Steven"]
[WhiteElo "2386"]
[BlackElo "2049"]
[Round "9.52"]
[Result "1-0"]
[TimeControl "180+2"]

1. e4 {[%emt 00:04:59] [%clk 00:03:03]} c6 {[%clk 00:03:04]} 2. d4 {[%emt
00:00:02] [%clk 00:03:03]} d5 {[%emt 00:00:01] [%clk 00:03:05]} 3. e5 {[%emt
00:00:01] [%clk 00:03:04]} Bf5 {[%emt 00:00:01] [%clk 00:03:06]} 4. Nf3 {[%emt
00:00:02] [%clk 00:03:04]} e6 {[%emt 00:00:01] [%clk 00:03:06]} 5. Be2 {[%emt
00:00:01] [%clk 00:03:05]} c5 {[%emt 00:00:02] [%clk 00:03:07]} 6. Be3 {[%emt
00:00:02] [%clk 00:03:05]} Nd7 {[%emt 00:00:09] [%clk 00:03:00]} 7. O-O {[%emt
00:00:05] [%clk 00:03:01]} Ne7 {[%emt 00:00:02] [%clk 00:03:01]} 8. c4 {[%emt
00:00:17] [%clk 00:02:46]} dxc4 {[%emt 00:00:17] [%clk 00:02:46]} 9. Nbd2 {[%emt
00:00:12] [%clk 00:02:36]} Nc6 {[%emt 00:00:06] [%clk 00:02:42]} 10. Nxc4 {[%emt
00:00:05] [%clk 00:02:33]} Be7 {[%emt 00:00:12] [%clk 00:02:32]} 11. Rc1 {[%emt
00:00:04] [%clk 00:02:30]} O-O {[%emt 00:00:23] [%clk 00:02:11]} 12. dxc5 {[%emt
00:00:07] [%clk 00:02:26]} Nxc5 {[%emt 00:00:27] [%clk 00:01:46]} 13. Nd4 {[%emt
00:00:13] [%clk 00:02:14]} Nxd4 {[%emt 00:00:08] [%clk 00:01:40]} 14. Bxd4
{[%emt 00:00:02] [%clk 00:02:15]} Nd7 {[%emt 00:00:58] [%clk 00:00:44]} 15. Bf3
{[%emt 00:00:05] [%clk 00:02:12]} Bc5 {[%emt 00:00:18] [%clk 00:00:28]} 16. Bxb7
{[%emt 00:00:04] [%clk 00:02:09]} Rb8 {[%emt 00:00:02] [%clk 00:00:28]} 17. Bc6
{[%emt 00:00:08] [%clk 00:02:03]} Bxd4 {[%emt 00:00:11] [%clk 00:00:20]} 18.
Qxd4 {[%clk 00:02:04]} Nb6 {[%emt 00:00:03] [%clk 00:00:19]} 19. Nd6 {[%emt
00:00:07] [%clk 00:02:00]} Nd5 {[%emt 00:00:08] [%clk 00:00:12]} 20. Nxf5 {[%emt
00:00:05] [%clk 00:01:57]} Qg5 {[%emt 00:00:09] [%clk 00:00:05]} 21. Bxd5 {[%emt
00:00:04] [%clk 00:01:54]} 1-0

[Site "Europe Echecs"]

[Event "Championnat d'Europe de Blitz"]
[Date "2024.12.09"]
[White "Kucharska, Honorata"]
[Black "Herega, Nejc"]
[WhiteElo "2071"]
[BlackElo "2249"]
[Round "9.53"]
[Result "0-1"]
[TimeControl "180+2"]

1. e4 {[%emt 00:11:52] [%clk 00:03:03]} c5 {[%clk 00:03:03]} 2. Nf3 {[%emt
00:00:02] [%clk 00:03:03]} d6 {[%emt 00:00:01] [%clk 00:03:04]} 3. Bb5+ {[%emt
00:00:02] [%clk 00:03:03]} Bd7 {[%emt 00:00:02] [%clk 00:03:04]} 4. Bxd7+ {[%emt
00:00:01] [%clk 00:03:03]} Nxd7 {[%emt 00:00:02] [%clk 00:03:05]} 5. O-O {[%emt
00:00:02] [%clk 00:03:03]} Ngf6 {[%emt 00:00:02] [%clk 00:03:05]} 6. Re1 {[%emt
00:00:02] [%clk 00:03:04]} e6 {[%emt 00:00:02] [%clk 00:03:04]} 7. c3 {[%emt
00:00:01] [%clk 00:03:05]} Be7 {[%emt 00:00:02] [%clk 00:03:04]} 8. d4 {[%emt
00:00:02] [%clk 00:03:05]} cxd4 {[%emt 00:00:02] [%clk 00:03:04]} 9. cxd4 {[%emt
00:00:02] [%clk 00:03:05]} d5 {[%clk 00:03:05]} 10. e5 {[%emt 00:00:05] [%clk
00:03:03]} Ne4 {[%clk 00:03:05]} 11. Nc3 {[%emt 00:00:03] [%clk 00:03:02]} Nxc3
{[%emt 00:00:08] [%clk 00:02:59]} 12. bxc3 {[%emt 00:00:02] [%clk 00:03:02]} O-O
{[%emt 00:00:16] [%clk 00:02:45]} 13. Qb3 {[%emt 00:00:03] [%clk 00:03:02]} Qb6
{[%emt 00:00:04] [%clk 00:02:42]} 14. Qc2 {[%emt 00:00:16] [%clk 00:02:48]} h6
{[%emt 00:00:10] [%clk 00:02:34]} 15. a4 {[%emt 00:00:16] [%clk 00:02:35]} Rac8
{[%emt 00:00:02] [%clk 00:02:33]} 16. Ba3 {[%emt 00:00:03] [%clk 00:02:34]} Bxa3
{[%emt 00:00:05] [%clk 00:02:30]} 17. Rxa3 {[%emt 00:00:02] [%clk 00:02:34]} Qa5
{[%emt 00:00:19] [%clk 00:02:13]} 18. Rb1 {[%emt 00:00:14] [%clk 00:02:21]} Rc7
{[%emt 00:00:05] [%clk 00:02:11]} 19. Rb5 {[%emt 00:00:31] [%clk 00:01:52]} Qa6
{[%emt 00:00:02] [%clk 00:02:12]} 20. h3 {[%emt 00:00:02] [%clk 00:01:51]} Rfc8
{[%emt 00:00:05] [%clk 00:02:09]} 21. Qb2 {[%emt 00:00:03] [%clk 00:01:50]} Nb6
{[%emt 00:00:13] [%clk 00:01:59]} 22. Qa1 {[%emt 00:00:19] [%clk 00:01:31]} Nxa4
{[%emt 00:00:42] [%clk 00:01:20]} 23. Rb4 {[%emt 00:00:46] [%clk 00:00:48]} b5
{[%emt 00:00:01] [%clk 00:01:20]} 24. Nd2 {[%emt 00:00:04] [%clk 00:00:46]} Qc6
{[%emt 00:00:15] [%clk 00:01:07]} 25. c4 {[%emt 00:00:14] [%clk 00:00:34]} dxc4
{[%emt 00:00:10] [%clk 00:00:59]} 26. Nxc4 {[%emt 00:00:02] [%clk 00:00:35]}
bxc4 {[%emt 00:00:07] [%clk 00:00:53]} 27. Rbxa4 {[%emt 00:00:02] [%clk
00:00:36]} c3 {[%emt 00:00:03] [%clk 00:00:52]} 28. Rb4 {[%emt 00:00:05] [%clk
00:00:32]} c2 {[%emt 00:00:08] [%clk 00:00:46]} 29. Qc1 {[%emt 00:00:02] [%clk
00:00:33]} Rb7 {[%emt 00:00:09] [%clk 00:00:39]} 30. Rab3 {[%emt 00:00:03] [%clk
00:00:32]} Rxb4 {[%emt 00:00:04] [%clk 00:00:37]} 31. Rxb4 {[%emt 00:00:02]
[%clk 00:00:32]} Qc3 {[%emt 00:00:01] [%clk 00:00:37]} 32. Ra4 {[%emt 00:00:06]
[%clk 00:00:29]} a5 {[%emt 00:00:13] [%clk 00:00:26]} 33. Kh2 {[%emt 00:00:06]
[%clk 00:00:24]} Rc4 {[%emt 00:00:03] [%clk 00:00:25]} 34. Ra2 {[%emt 00:00:03]
[%clk 00:00:24]} a4 {[%emt 00:00:07] [%clk 00:00:20]} 35. f3 {[%emt 00:00:05]
[%clk 00:00:21]} Qb3 {[%emt 00:00:02] [%clk 00:00:20]} 36. Ra1 {[%emt 00:00:03]
[%clk 00:00:20]} a3 {[%emt 00:00:03] [%clk 00:00:18]} 37. Rxa3 {[%emt 00:00:06]
[%clk 00:00:17]} Qxa3 {[%emt 00:00:01] [%clk 00:00:19]} 0-1

[Site "Europe Echecs"]

[Event "Championnat d'Europe de Blitz"]
[Date "2024.12.09"]
[White "Trajkovski, Mile"]
[Black "Maltsevskaya, Aleksandra"]
[WhiteElo "1910"]
[BlackElo "2368"]
[Round "9.54"]
[Result "0-1"]
[TimeControl "180+2"]

1. e4 {[%emt 00:11:40] [%clk 00:03:03]} c5 {[%emt 00:00:01] [%clk 00:03:03]} 2.
a3 {[%emt 00:00:01] [%clk 00:03:04]} g6 {[%emt 00:00:02] [%clk 00:03:03]} 3. b4
{[%emt 00:00:01] [%clk 00:03:05]} Bg7 {[%emt 00:00:12] [%clk 00:02:53]} 4. Nc3
{[%emt 00:00:03] [%clk 00:03:03]} cxb4 {[%emt 00:00:02] [%clk 00:02:53]} 5. axb4
{[%emt 00:00:01] [%clk 00:03:04]} d6 {[%emt 00:00:03] [%clk 00:02:52]} 6. Bc4
{[%emt 00:00:10] [%clk 00:02:56]} Nf6 {[%emt 00:00:01] [%clk 00:02:53]} 7. d4
{[%emt 00:00:13] [%clk 00:02:45]} O-O {[%emt 00:00:03] [%clk 00:02:52]} 8. h4
{[%emt 00:00:16] [%clk 00:02:31]} Qc7 {[%emt 00:00:14] [%clk 00:02:40]} 9. Qe2
{[%emt 00:00:06] [%clk 00:02:27]} Nc6 {[%emt 00:00:04] [%clk 00:02:39]} 10. Nb5
{[%emt 00:00:11] [%clk 00:02:17]} Qd8 {[%emt 00:00:24] [%clk 00:02:18]} 11. c3
{[%emt 00:00:02] [%clk 00:02:17]} Bd7 {[%emt 00:00:09] [%clk 00:02:10]} 12. h5
{[%emt 00:00:05] [%clk 00:02:14]} a5 {[%emt 00:00:11] [%clk 00:02:01]} 13. hxg6
{[%emt 00:00:18] [%clk 00:01:58]} hxg6 {[%emt 00:00:01] [%clk 00:02:03]} 14.
bxa5 {[%emt 00:00:18] [%clk 00:01:42]} Rxa5 {[%emt 00:00:01] [%clk 00:02:03]}
15. Rb1 {[%emt 00:00:02] [%clk 00:01:43]} Qa8 {[%emt 00:00:51] [%clk 00:01:14]}
16. Nc7 {[%emt 00:00:17] [%clk 00:01:27]} Qa7 {[%emt 00:00:07] [%clk 00:01:10]}
17. Nd5 {[%emt 00:00:02] [%clk 00:01:26]} Ra1 {[%emt 00:00:07] [%clk 00:01:05]}
18. Bd3 {[%emt 00:00:19] [%clk 00:01:08]} Rxb1 {[%emt 00:00:12] [%clk 00:00:56]}
19. Bxb1 {[%emt 00:00:02] [%clk 00:01:08]} Qa1 {[%emt 00:00:02] [%clk 00:00:56]}
20. Qb2 {[%emt 00:00:12] [%clk 00:00:58]} Qxb2 {[%emt 00:00:08] [%clk 00:00:50]}
21. Bxb2 {[%emt 00:00:01] [%clk 00:00:59]} Nxd5 {[%emt 00:00:02] [%clk
00:00:50]} 22. exd5 {[%clk 00:01:00]} Na5 {[%emt 00:00:01] [%clk 00:00:51]} 23.
Bd3 {[%emt 00:00:05] [%clk 00:00:57]} b5 {[%emt 00:00:25] [%clk 00:00:29]} 24.
Ne2 {[%emt 00:00:02] [%clk 00:00:56]} Ra8 {[%emt 00:00:03] [%clk 00:00:28]} 25.
Kd2 {[%clk 00:00:57]} e6 {[%emt 00:00:07] [%clk 00:00:24]} 26. Ra1 {[%emt
00:00:08] [%clk 00:00:50]} Nb3+ {[%emt 00:00:02] [%clk 00:00:25]} 27. Kc2 {[%emt
00:00:01] [%clk 00:00:50]} Nxa1+ {[%emt 00:00:02] [%clk 00:00:25]} 28. Kb1
{[%emt 00:00:01] [%clk 00:00:52]} Nb3 {[%clk 00:00:26]} 29. Kc2 {[%clk
00:00:53]} Na5 {[%emt 00:00:01] [%clk 00:00:27]} 30. Be4 {[%emt 00:00:06] [%clk
00:00:49]} exd5 {[%emt 00:00:04] [%clk 00:00:25]} 31. Bxd5 {[%emt 00:00:01]
[%clk 00:00:50]} Bc6 {[%clk 00:00:26]} 32. Nf4 {[%emt 00:00:07] [%clk 00:00:44]}
Re8 {[%emt 00:00:09] [%clk 00:00:20]} 33. Kd3 {[%emt 00:00:05] [%clk 00:00:42]}
Bxd5 {[%emt 00:00:03] [%clk 00:00:19]} 34. Nxd5 {[%clk 00:00:43]} Nc4 {[%emt
00:00:01] [%clk 00:00:20]} 35. Bc1 {[%emt 00:00:01] [%clk 00:00:44]} Re1 {[%emt
00:00:02] [%clk 00:00:19]} 36. Bf4 {[%emt 00:00:03] [%clk 00:00:43]} Rf1 {[%emt
00:00:02] [%clk 00:00:19]} 37. Ke2 {[%emt 00:00:02] [%clk 00:00:44]} Ra1 {[%emt
00:00:02] [%clk 00:00:19]} 38. Ne7+ {[%emt 00:00:04] [%clk 00:00:42]} Kf8 {[%emt
00:00:01] [%clk 00:00:19]} 39. Nc8 {[%emt 00:00:01] [%clk 00:00:43]} Ra3 {[%emt
00:00:06] [%clk 00:00:15]} 40. Nxd6 {[%emt 00:00:04] [%clk 00:00:41]} Rxc3
{[%emt 00:00:02] [%clk 00:00:16]} 41. Nxb5 {[%clk 00:00:41]} Rb3 {[%emt
00:00:03] [%clk 00:00:15]} 42. Nd6 {[%emt 00:00:06] [%clk 00:00:37]} Nxd6 {[%emt
00:00:02] [%clk 00:00:16]} 43. Bxd6+ {[%clk 00:00:38]} Ke8 {[%emt 00:00:01]
[%clk 00:00:17]} 44. Bc5 {[%emt 00:00:01] [%clk 00:00:39]} Kd7 {[%emt 00:00:01]
[%clk 00:00:18]} 45. Kd2 {[%emt 00:00:01] [%clk 00:00:40]} Kc6 {[%emt 00:00:02]
[%clk 00:00:18]} 46. Kc2 {[%clk 00:00:41]} Rb5 {[%emt 00:00:02] [%clk 00:00:18]}
47. Kd3 {[%emt 00:00:02] [%clk 00:00:42]} Kd5 {[%clk 00:00:19]} 48. Be7 {[%emt
00:00:03] [%clk 00:00:41]} Bxd4 {[%emt 00:00:01] [%clk 00:00:19]} 49. f3 {[%emt
00:00:01] [%clk 00:00:42]} Rb3+ {[%emt 00:00:01] [%clk 00:00:20]} 50. Ke2 {[%clk
00:00:43]} Re3+ {[%emt 00:00:02] [%clk 00:00:21]} 51. Kf1 {[%emt 00:00:01] [%clk
00:00:44]} Rxe7 {[%emt 00:00:01] [%clk 00:00:21]} 52. g4 {[%clk 00:00:45]} Ke5
{[%emt 00:00:03] [%clk 00:00:21]} 53. Kg2 {[%clk 00:00:47]} Kf4 {[%emt 00:00:02]
[%clk 00:00:22]} 0-1

[Site "Europe Echecs"]

[Event "Championnat d'Europe de Blitz"]
[Date "2024.12.09"]
[White "Fedoseev, Vladimir"]
[Black "Van Foreest, Jorden"]
[WhiteElo "2709"]
[BlackElo "2677"]
[Round "10.1"]
[Result "1/2-1/2"]
[TimeControl "180+2"]

1. c4 {[%emt 00:19:48] [%clk 00:03:03]} Nf6 {[%clk 00:03:02]} 2. Nc3 {[%emt
00:00:02] [%clk 00:03:03]} e5 {[%emt 00:00:02] [%clk 00:03:02]} 3. Nf3 {[%emt
00:00:01] [%clk 00:03:04]} Nc6 {[%emt 00:00:01] [%clk 00:03:03]} 4. d3 {[%emt
00:00:01] [%clk 00:03:05]} Bb4 {[%emt 00:00:06] [%clk 00:02:59]} 5. Bd2 {[%emt
00:00:04] [%clk 00:03:03]} O-O {[%emt 00:00:03] [%clk 00:02:58]} 6. g3 {[%emt
00:00:01] [%clk 00:03:04]} Re8 {[%emt 00:00:08] [%clk 00:02:52]} 7. Bg2 {[%emt
00:00:01] [%clk 00:03:04]} Bxc3 {[%emt 00:00:08] [%clk 00:02:47]} 8. Bxc3 {[%emt
00:00:03] [%clk 00:03:04]} e4 {[%emt 00:00:08] [%clk 00:02:40]} 9. Ng5 {[%emt
00:00:57] [%clk 00:02:09]} exd3 {[%emt 00:00:02] [%clk 00:02:40]} 10. Qxd3
{[%emt 00:00:04] [%clk 00:02:08]} Ne5 {[%clk 00:02:41]} 11. Bxe5 {[%emt
00:00:18] [%clk 00:01:52]} Rxe5 {[%emt 00:00:02] [%clk 00:02:41]} 12. f4 {[%emt
00:00:01] [%clk 00:01:52]} Re8 {[%emt 00:00:04] [%clk 00:02:40]} 13. Bd5 {[%emt
00:00:01] [%clk 00:01:52]} Rf8 {[%emt 00:00:06] [%clk 00:02:36]} 14. O-O-O
{[%emt 00:00:07] [%clk 00:01:47]} c6 {[%emt 00:00:01] [%clk 00:02:38]} 15. Bxf7+
{[%emt 00:00:02] [%clk 00:01:47]} Rxf7 {[%clk 00:02:38]} 16. Nxf7 {[%emt
00:00:01] [%clk 00:01:48]} Kxf7 {[%emt 00:00:02] [%clk 00:02:39]} 17. e4 {[%clk
00:01:49]} d5 {[%emt 00:00:40] [%clk 00:02:02]} 18. e5 {[%emt 00:00:03] [%clk
00:01:48]} Ng4 {[%emt 00:00:01] [%clk 00:02:03]} 19. Qf3 {[%emt 00:01:11] [%clk
00:00:39]} Qb6 {[%emt 00:00:03] [%clk 00:02:02]} 20. e6+ {[%emt 00:00:08] [%clk
00:00:33]} Bxe6 {[%emt 00:00:18] [%clk 00:01:46]} 21. f5 {[%clk 00:00:34]} Qe3+
{[%emt 00:00:07] [%clk 00:01:40]} 22. Qxe3 {[%emt 00:00:01] [%clk 00:00:35]}
Nxe3 {[%emt 00:00:02] [%clk 00:01:41]} 23. fxe6+ {[%emt 00:00:01] [%clk
00:00:35]} Ke7 {[%emt 00:00:10] [%clk 00:01:34]} 24. cxd5 {[%emt 00:00:20] [%clk
00:00:17]} Nxd1 {[%emt 00:00:05] [%clk 00:01:31]} 25. Rxd1 {[%emt 00:00:01]
[%clk 00:00:18]} 1/2-1/2

[Site "Europe Echecs"]

[Event "Championnat d'Europe de Blitz"]
[Date "2024.12.09"]
[White "Fressinet, Laurent"]
[Black "Sarana, Alexey"]
[WhiteElo "2588"]
[BlackElo "2674"]
[Round "10.2"]
[Result "0-1"]
[TimeControl "180+2"]

1. Nf3 {[%emt 00:19:57] [%clk 00:03:03]} d5 {[%clk 00:03:04]} 2. g3 {[%clk
00:03:04]} g6 {[%clk 00:03:05]} 3. Bg2 {[%clk 00:03:04]} Bg7 {[%clk 00:03:06]}
4. d4 {[%emt 00:00:01] [%clk 00:03:05]} c6 {[%emt 00:00:02] [%clk 00:03:07]} 5.
O-O {[%emt 00:00:04] [%clk 00:03:02]} Nf6 {[%emt 00:00:01] [%clk 00:03:08]} 6.
c4 {[%emt 00:00:02] [%clk 00:03:03]} O-O {[%emt 00:00:02] [%clk 00:03:08]} 7.
Nc3 {[%emt 00:00:02] [%clk 00:03:03]} Qb6 {[%emt 00:00:17] [%clk 00:02:53]} 8.
b3 {[%emt 00:00:14] [%clk 00:02:51]} Be6 {[%emt 00:00:08] [%clk 00:02:47]} 9.
cxd5 {[%emt 00:00:15] [%clk 00:02:38]} Nxd5 {[%emt 00:00:06] [%clk 00:02:42]}
10. Na4 {[%emt 00:00:02] [%clk 00:02:38]} Qc7 {[%emt 00:00:01] [%clk 00:02:44]}
11. Bb2 {[%emt 00:00:03] [%clk 00:02:37]} Na6 {[%emt 00:00:07] [%clk 00:02:39]}
12. Rc1 {[%emt 00:00:02] [%clk 00:02:36]} Rad8 {[%emt 00:00:02] [%clk 00:02:39]}
13. e4 {[%emt 00:00:08] [%clk 00:02:30]} Nf6 {[%emt 00:00:01] [%clk 00:02:40]}
14. Qe2 {[%emt 00:00:08] [%clk 00:02:25]} Qa5 {[%emt 00:00:06] [%clk 00:02:36]}
15. Rfe1 {[%emt 00:00:13] [%clk 00:02:13]} Qh5 {[%emt 00:00:11] [%clk 00:02:28]}
16. Ne5 {[%emt 00:00:12] [%clk 00:02:02]} Qxe2 {[%emt 00:00:02] [%clk 00:02:28]}
17. Rxe2 {[%emt 00:00:01] [%clk 00:02:03]} Ng4 {[%emt 00:00:05] [%clk 00:02:25]}
18. Nf3 {[%emt 00:00:10] [%clk 00:01:54]} h6 {[%emt 00:00:23] [%clk 00:02:06]}
19. h3 {[%emt 00:00:14] [%clk 00:01:42]} Nf6 {[%emt 00:00:01] [%clk 00:02:07]}
20. Ne5 {[%clk 00:01:43]} Nd7 {[%emt 00:00:14] [%clk 00:01:55]} 21. Nxd7 {[%emt
00:00:19] [%clk 00:01:26]} Rxd7 {[%emt 00:00:10] [%clk 00:01:47]} 22. d5 {[%emt
00:00:11] [%clk 00:01:17]} cxd5 {[%emt 00:00:08] [%clk 00:01:42]} 23. Bxg7
{[%emt 00:00:01] [%clk 00:01:16]} Kxg7 {[%emt 00:00:02] [%clk 00:01:43]} 24.
exd5 {[%clk 00:01:18]} Bf5 {[%emt 00:00:13] [%clk 00:01:32]} 25. Re3 {[%emt
00:00:10] [%clk 00:01:09]} g5 {[%emt 00:00:05] [%clk 00:01:30]} 26. a3 {[%emt
00:00:15] [%clk 00:00:56]} b6 {[%emt 00:00:02] [%clk 00:01:30]} 27. b4 {[%emt
00:00:07] [%clk 00:00:51]} Rfd8 {[%emt 00:00:04] [%clk 00:01:28]} 28. Rec3
{[%emt 00:00:05] [%clk 00:00:48]} Nb8 {[%emt 00:00:41] [%clk 00:00:49]} 29. Nb2
{[%emt 00:00:17] [%clk 00:00:32]} Kf6 {[%emt 00:00:13] [%clk 00:00:38]} 30. Rc7
{[%emt 00:00:05] [%clk 00:00:29]} Rxc7 {[%emt 00:00:09] [%clk 00:00:32]} 31.
Rxc7 {[%emt 00:00:01] [%clk 00:00:30]} Rd7 {[%clk 00:00:33]} 32. Rc8 {[%emt
00:00:08] [%clk 00:00:24]} Na6 {[%emt 00:00:02] [%clk 00:00:34]} 33. Rc6+ {[%emt
00:00:07] [%clk 00:00:18]} Rd6 {[%emt 00:00:08] [%clk 00:00:28]} 34. Rxd6+
{[%emt 00:00:13] [%clk 00:00:08]} exd6 {[%emt 00:00:01] [%clk 00:00:29]} 35. Nc4
{[%clk 00:00:09]} Ke7 {[%emt 00:00:01] [%clk 00:00:30]} 36. Ne3 {[%emt 00:00:02]
[%clk 00:00:10]} Bd7 {[%emt 00:00:01] [%clk 00:00:29]} 37. f4 {[%emt 00:00:02]
[%clk 00:00:10]} gxf4 {[%emt 00:00:04] [%clk 00:00:27]} 38. gxf4 {[%clk
00:00:12]} Nc7 {[%emt 00:00:01] [%clk 00:00:28]} 39. Bf1 {[%clk 00:00:13]} Kf6
{[%emt 00:00:05] [%clk 00:00:26]} 40. Kf2 {[%clk 00:00:14]} Bb5 {[%emt 00:00:06]
[%clk 00:00:21]} 41. Bg2 {[%emt 00:00:09] [%clk 00:00:07]} Bd3 {[%emt 00:00:06]
[%clk 00:00:17]} 42. Ke1 {[%clk 00:00:09]} Nb5 {[%emt 00:00:04] [%clk 00:00:16]}
43. Kd2 {[%clk 00:00:10]} Bf5 {[%emt 00:00:01] [%clk 00:00:17]} 44. Nc4 {[%emt
00:00:08] [%clk 00:00:04]} Ke7 {[%emt 00:00:07] [%clk 00:00:12]} 45. Ke3 {[%emt
00:00:01] [%clk 00:00:05]} Nc7 {[%emt 00:00:04] [%clk 00:00:10]} 46. Kd4 {[%emt
00:00:01] [%clk 00:00:05]} Bd7 {[%emt 00:00:02] [%clk 00:00:11]} 47. Ke3 {[%emt
00:00:03] [%clk 00:00:04]} Nb5 {[%emt 00:00:02] [%clk 00:00:11]} 48. Kd3 {[%emt
00:00:01] [%clk 00:00:05]} Bf5+ {[%emt 00:00:02] [%clk 00:00:12]} 49. Ke3 {[%clk
00:00:06]} Bc8 {[%emt 00:00:03] [%clk 00:00:11]} 50. Bf1 {[%emt 00:00:01] [%clk
00:00:07]} Bd7 {[%emt 00:00:02] [%clk 00:00:12]} 51. Bg2 {[%emt 00:00:01] [%clk
00:00:08]} Bf5 {[%emt 00:00:05] [%clk 00:00:09]} 52. Bf1 {[%emt 00:00:01] [%clk
00:00:09]} Nc7 {[%emt 00:00:01] [%clk 00:00:09]} 53. Bg2 {[%emt 00:00:01] [%clk
00:00:10]} Bc2 {[%emt 00:00:01] [%clk 00:00:10]} 54. Kd4 {[%emt 00:00:08] [%clk
00:00:04]} Nb5+ {[%emt 00:00:02] [%clk 00:00:10]} 55. Ke3 {[%clk 00:00:05]} Bb3
{[%clk 00:00:12]} 56. Nd2 {[%emt 00:00:01] [%clk 00:00:06]} Bc2 {[%emt 00:00:02]
[%clk 00:00:11]} 57. Nc4 {[%emt 00:00:03] [%clk 00:00:06]} Bb3 {[%emt 00:00:02]
[%clk 00:00:11]} 58. Nd2 {[%clk 00:00:07]} Ba2 {[%emt 00:00:01] [%clk 00:00:12]}
59. a4 {[%clk 00:00:08]} Nc3 {[%emt 00:00:01] [%clk 00:00:13]} 60. a5 {[%emt
00:00:02] [%clk 00:00:08]} Bxd5 {[%emt 00:00:02] [%clk 00:00:13]} 61. Bf1 {[%emt
00:00:04] [%clk 00:00:06]} bxa5 {[%emt 00:00:03] [%clk 00:00:13]} 62. bxa5
{[%clk 00:00:07]} Bc6 {[%emt 00:00:05] [%clk 00:00:10]} 63. Kd4 {[%emt 00:00:02]
[%clk 00:00:07]} Nd5 {[%emt 00:00:03] [%clk 00:00:09]} 64. Bg2 {[%emt 00:00:05]}
Nb4 {[%clk 00:00:10]} 65. Bf1 {[%emt 00:00:02] [%clk 00:00:05]} Bb7 {[%emt
00:00:01] [%clk 00:00:10]} 66. Bb5 {[%emt 00:00:02] [%clk 00:00:05]} a6 {[%emt
00:00:04] [%clk 00:00:09]} 67. Ba4 {[%clk 00:00:06]} Bc6 {[%emt 00:00:04] [%clk
00:00:07]} 68. Kc4 {[%emt 00:00:02] [%clk 00:00:06]} Bxa4 {[%emt 00:00:02] [%clk
00:00:07]} 69. Kxb4 {[%clk 00:00:07]} Bb5 {[%emt 00:00:02] [%clk 00:00:08]} 70.
Kc3 {[%emt 00:00:02] [%clk 00:00:06]} Ke6 {[%emt 00:00:01] [%clk 00:00:09]} 71.
Kd4 {[%emt 00:00:02] [%clk 00:00:06]} Kf5 {[%clk 00:00:10]} 72. Ne4 {[%clk
00:00:08]} Ke6 {[%emt 00:00:05] [%clk 00:00:07]} 73. f5+ {[%emt 00:00:02] [%clk
00:00:08]} Ke7 {[%emt 00:00:02] [%clk 00:00:07]} 74. Nc3 {[%emt 00:00:01] [%clk
00:00:09]} Bc6 {[%clk 00:00:08]} 75. Na2 {[%emt 00:00:03] [%clk 00:00:08]} Kf6
{[%emt 00:00:03] [%clk 00:00:07]} 76. Nb4 {[%clk 00:00:09]} Bb7 {[%clk
00:00:09]} 77. Nd5+ {[%emt 00:00:07] [%clk 00:00:04]} Kxf5 {[%emt 00:00:01]
[%clk 00:00:09]} 78. Nb6 {[%emt 00:00:03] [%clk 00:00:04]} Ke6 {[%emt 00:00:01]
[%clk 00:00:10]} 79. Nc4 {[%clk 00:00:05]} f5 {[%emt 00:00:01] [%clk 00:00:11]}
80. Ke3 {[%emt 00:00:02] [%clk 00:00:06]} Bd5 {[%emt 00:00:01] [%clk 00:00:12]}
81. Nb6 {[%emt 00:00:02] [%clk 00:00:06]} Bc6 {[%emt 00:00:02] [%clk 00:00:11]}
82. Kf4 {[%emt 00:00:01] [%clk 00:00:07]} d5 {[%emt 00:00:01] [%clk 00:00:12]}
83. Nc8 {[%emt 00:00:05] [%clk 00:00:05]} d4 {[%emt 00:00:01] [%clk 00:00:12]}
84. Nb6 {[%emt 00:00:02] [%clk 00:00:06]} Bb5 {[%emt 00:00:01] [%clk 00:00:13]}
0-1

[Site "Europe Echecs"]